bitfinex/quotes_SOLUSD_20250929
["timestamp","ask_amount","ask_price","bid_price","bid_amount"]
[1759135228796,7.8563522,209.47,209.42,0.67]
[1759135228797,0.69,209.46,209.42,0.67]
[1759135229002,7.1663522,209.47,209.42,0.67]
[1759135229003,7.1663522,209.47,209.44,36.68]
[1759135229201,7.8563522,209.47,209.44,36.68]
[1759135229698,7.1663522,209.47,209.43,0.67]
[1759135229890,2.39234626,209.47,209.43,42.12484621]
[1759135230089,7.16630745,209.47,209.44,0.67]
[1759135230401,7.16630745,209.47,209.45,0.67]
[1759135230601,2.39234626,209.47,209.45,0.67]
[1759135230978,28.39234626,209.47,209.45,0.67]
[1759135231188,26.0,209.46,209.43,41.45484621]
[1759135231678,26.0,209.46,209.44,0.67]
[1759135231875,26.0,209.46,209.44,5.44457931]
[1759135232079,26.0,209.46,209.45,0.67]
[1759135233193,26.0,209.47,209.44,36.68]
[1759135233701,26.0,209.47,209.44,37.35]
[1759135234202,26.0,209.47,209.45,0.67]
[1759135234803,26.0,209.46,209.45,0.67]
[1759135236402,26.69,209.47,209.43,4.77484523]
[1759135236604,28.39234626,209.47,209.44,37.33]
[1759135237107,26.0,209.47,209.45,0.67]
[1759135237483,26.0,209.47,209.45,37.33]
[1759135237915,26.0,209.46,209.45,37.33]
[1759135242187,3.22275534,209.49,209.45,42.10440916]
[1759135242402,26.0,209.49,209.46,0.67]
[1759135242700,26.0,209.49,209.47,36.66]
[1759135242902,26.0,209.49,209.48,0.67]
[1759135243407,26.0,209.49,209.47,36.66]
[1759135243614,26.69,209.49,209.47,36.66]
[1759135244510,2.39234626,209.48,209.47,36.66]
[1759135244717,26.0,209.47,209.46,36.66]
[1759135245596,26.0,209.47,209.46,37.33]
[1759135246103,26.0,209.47,209.46,36.66]
[1759135246916,26.0,209.47,209.46,37.33]
[1759135247794,26.0,209.47,209.46,36.66]
[1759135249816,33.16629957,209.47,209.46,36.66]
[1759135250020,33.16629957,209.47,209.42,0.67]
[1759135250021,33.85629957,209.47,209.42,0.67]
[1759135250323,2.39234626,209.45,209.43,36.66]
[1759135250522,2.39234626,209.45,209.43,37.33]
[1759135251424,2.39234626,209.45,209.43,36.66]
[1759135251815,2.39234626,209.45,209.43,37.38]
[1759135253129,7.16676544,209.45,209.43,36.66]
[1759135254136,26.0,209.42,209.38,0.72]
[1759135254304,2.39234626,209.41,209.38,0.72]
[1759135254499,2.39234626,209.41,209.36,36.66]
[1759135254704,28.39234626,209.41,209.38,0.72]
[1759135254917,28.39234626,209.41,209.39,0.72]
[1759135256516,33.16771513,209.41,209.37,0.72]
[1759135256721,33.16771513,209.41,209.38,0.72]
[1759135257130,28.39234626,209.41,209.38,0.72]
[1759135258636,33.85770936,209.41,209.36,37.38]
[1759135258839,33.85770936,209.41,209.37,0.72]
[1759135259211,33.85770936,209.41,209.38,0.72]
[1759135259534,33.16770936,209.41,209.38,0.72]
[1759135259714,26.0,209.4,209.38,0.72]
[1759135259914,28.39234626,209.41,209.38,0.72]
[1759135260211,26.0,209.4,209.38,0.72]
[1759135260621,26.0,209.4,209.39,0.72]
[1759135260813,26.0,209.41,209.39,0.72]
[1759135261907,26.0,209.41,209.37,4.77623346]
[1759135262227,2.39234626,209.4,209.36,51.02334475]
[1759135262630,2.39234626,209.4,209.37,0.72]
[1759135262631,28.39234626,209.39,209.37,0.72]
[1759135262933,28.39234626,209.39,209.36,36.66]
[1759135262934,26.0,209.39,209.36,36.66]
[1759135263112,26.0,209.39,209.38,0.72]
[1759135263317,2.39234626,209.4,209.36,37.38]
[1759135263517,2.39234626,209.4,209.36,36.66]
[1759135263720,2.39234626,209.4,209.37,0.72]
[1759135263921,7.16791396,209.4,209.36,36.66]
[1759135264120,7.85791396,209.4,209.36,37.38]
[1759135265412,7.16791396,209.4,209.36,36.66]
[1759135265620,2.39234626,209.4,209.37,0.72]
[1759135266243,26.0,209.39,209.38,0.72]
[1759135266832,28.39234626,209.4,209.38,0.72]
[1759135267140,33.85799785,209.4,209.36,36.66]
[1759135267335,33.85799785,209.4,209.36,37.38]
[1759135267538,2.39234626,209.38,209.36,36.66]
[1759135267740,28.39234626,209.4,209.37,0.72]
[1759135267946,28.39234626,209.4,209.38,0.72]
[1759135268832,26.0,209.4,209.38,0.72]
[1759135271343,26.0,209.4,209.36,4.77646159]
[1759135271535,2.39234626,209.38,209.37,37.38]
[1759135272844,2.39234626,209.38,209.37,42.15623346]
[1759135280968,2.39234626,209.38,209.36,36.66]
[1759135281269,2.39234626,209.37,209.36,37.34]
[1759135281445,28.39234626,209.39,209.36,37.34]
[1759135281648,26.0,209.38,209.36,42.11643369]
[1759135283250,26.0,209.38,209.36,37.34]
[1759135283452,26.68,209.38,209.36,36.66]
[1759135283845,30.77600607,209.38,209.36,36.66]
[1759135284045,3.07234626,209.37,209.36,36.66]
[1759135284245,2.39234626,209.37,209.36,36.66]
[1759135285542,2.39460742,209.37,209.36,36.66]
[1759135286256,1.53258123,209.37,209.36,36.66]
[1759135295251,26.0,209.37,209.36,37.34]
[1759135295558,26.0,209.37,209.36,36.66]
[1759135296169,26.0,209.37,209.36,37.34]
[1759135297468,26.0,209.37,209.36,36.66]
[1759135298964,26.0,209.37,209.36,37.34]
[1759135300376,26.0,209.37,209.36,36.66]
[1759135301682,30.77623346,209.37,209.36,36.66]
[1759135302157,26.0,209.37,209.36,36.66]
[1759135302358,26.0,209.37,209.36,37.34]
[1759135303252,27.53258123,209.37,209.36,37.34]
[1759135303763,27.53258123,209.37,209.36,36.66]
[1759135304269,27.53258123,209.37,209.36,37.34]
[1759135304676,26.0,209.37,209.36,37.34]
[1759135304880,1.53258123,209.41,209.36,54.05761558]
[1759135305078,1.53258123,209.41,209.37,0.68]
[1759135305254,26.0,209.4,209.38,36.66]
[1759135305577,26.0,209.4,209.39,0.68]
[1759135306350,1.53258123,209.45,209.39,5.45577725]
[1759135306554,1.53258123,209.45,209.4,37.34]
[1759135306764,1.53258123,209.45,209.41,0.68]
[1759135307056,1.53258123,209.45,209.42,36.66]
[1759135307277,1.53258123,209.45,209.43,0.68]
[1759135307475,0.68,209.44,209.4,0.68]
[1759135307749,1.53258123,209.43,209.41,37.34]
[1759135308174,1.53258123,209.45,209.42,0.68]
[1759135308762,1.53258123,209.45,209.43,0.68]
[1759135308963,1.53258123,209.45,209.44,0.68]
[1759135309982,1.53258123,209.45,209.41,37.34]
[1759135310173,1.53258123,209.45,209.42,0.68]
[1759135311375,6.99702966,209.45,209.4,0.66]
[1759135311562,1.53258123,209.43,209.4,0.66]
[1759135311873,1.53258123,209.43,209.41,37.3]
[1759135313464,0.69,209.46,209.42,0.66]
[1759135313684,1.53258123,209.44,209.42,0.66]
[1759135316164,6.30703759,209.45,209.42,0.66]
[1759135316371,6.99703759,209.45,209.42,0.66]
[1759135316663,6.30703759,209.45,209.42,0.66]
[1759135316864,6.99703759,209.45,209.42,0.66]
[1759135317482,6.99703759,209.45,209.41,36.64]
[1759135317788,1.53258123,209.43,209.39,37.3]
[1759135318166,1.53258123,209.41,209.39,36.64]
[1759135318369,1.53258123,209.41,209.39,37.3]
[1759135318568,1.53258123,209.41,209.4,0.66]
[1759135318886,1.53258123,209.43,209.4,0.66]
[1759135319799,6.30745744,209.43,209.4,0.66]
[1759135321195,6.99745744,209.43,209.39,37.3]
[1759135322068,6.30745744,209.43,209.4,0.66]
[1759135322268,6.99745744,209.43,209.4,0.66]
[1759135322467,1.53258123,209.43,209.41,0.66]
[1759135322662,1.53258123,209.43,209.39,41.41577302]
[1759135322863,1.53258123,209.43,209.42,0.66]
[1759135323697,1.53258123,209.43,209.4,0.66]
[1759135323997,2.22258123,209.43,209.39,36.64]
[1759135324180,2.22258123,209.43,209.4,0.66]
[1759135324587,6.30746391,209.43,209.4,0.66]
[1759135324767,6.99746391,209.43,209.4,0.66]
[1759135324967,6.30746391,209.43,209.39,36.64]
[1759135325174,6.30746391,209.43,209.38,0.66]
[1759135325377,1.53258123,209.41,209.39,0.66]
[1759135325997,6.30788563,209.42,209.39,0.66]
[1759135326166,6.30788563,209.42,209.37,36.64]
[1759135326372,6.30788563,209.42,209.39,0.66]
[1759135326890,6.30788563,209.42,209.37,41.41618326]
[1759135327096,6.99788563,209.42,209.38,0.66]
[1759135327391,0.69,209.41,209.38,0.66]
[1759135327690,2.22258123,209.4,209.35,0.76]
[1759135327893,4.77623346,209.37,209.35,0.1]
[1759135328094,4.77623346,209.37,209.35,0.76]
[1759135328271,1.53258123,209.38,209.35,0.1]
[1759135328478,1.53258123,209.38,209.36,0.66]
[1759135328775,6.3086568,209.38,209.36,0.66]
[1759135329588,1.53258123,209.39,209.37,0.66]
[1759135329801,13.59559401,209.41,209.35,4.87667964]
[1759135330094,33.991044,209.42,209.35,4.87667964]
[1759135330095,1.53258123,209.4,209.38,0.66]
[1759135330391,27.53258123,209.42,209.38,0.66]
[1759135330696,32.99768546,209.42,209.38,0.66]
[1759135331389,1.53258123,209.4,209.38,0.66]
[1759135331595,1.53258123,209.4,209.36,0.66]
[1759135332089,6.30818683,209.4,209.37,0.66]
[1759135332678,6.30818683,209.4,209.35,4.87662434]
[1759135332998,6.30818683,209.4,209.38,0.69]
[1759135337090,6.30818683,209.4,209.35,4.87667518]
[1759135337292,6.30818683,209.4,209.36,0.69]
[1759135337595,4.7756056,209.4,209.37,0.69]
[1759135337777,6.30818683,209.4,209.37,0.69]
[1759135339499,6.30818683,209.4,209.35,4.87662168]
[1759135339690,0.7,209.39,209.35,0.79]
[1759135340498,1.53258123,209.39,209.36,0.69]
[1759135340704,1.53258123,209.39,209.37,0.69]
[1759135341783,1.53258123,209.41,209.35,4.87663654]
[1759135341988,6.30798821,209.41,209.36,0.68]
[1759135342191,6.30798821,209.41,209.35,4.87663654]
[1759135342192,6.98798821,209.41,209.37,0.68]
[1759135343702,1.53258123,209.39,209.35,0.78]
[1759135343904,2.21258123,209.39,209.35,0.78]
[1759135344104,2.21258123,209.39,209.36,0.68]
[1759135344490,2.21258123,209.39,209.35,0.78]
[1759135344916,1.53258123,209.39,209.35,0.78]
[1759135345213,2.21258123,209.39,209.35,0.78]
[1759135346006,6.30845455,209.39,209.35,0.78]
[1759135346205,5.45587332,209.39,209.35,0.1]
[1759135346521,5.45587332,209.39,209.36,0.68]
[1759135348512,8.67314315,209.41,209.35,4.8766512]
[1759135348691,7.1694657,209.41,209.37,0.68]
[1759135349108,5.45534623,209.41,209.37,0.68]
[1759135349299,7.8494657,209.41,209.37,0.68]
[1759135349786,29.21779692,209.42,209.38,0.68]
[1759135349987,10.38701018,209.42,209.39,0.68]
[1759135350194,7.84921326,209.42,209.39,0.68]
[1759135350388,7.84921326,209.42,209.38,0.68]
[1759135352187,3.21779692,209.43,209.39,0.68]
[1759135352604,3.21779692,209.43,209.4,0.68]
[1759135353001,7.84897214,209.44,209.4,0.68]
[1759135353595,0.68,209.43,209.38,5.45598713]
[1759135353798,0.68,209.42,209.38,5.45598713]
[1759135353998,0.68,209.42,209.38,0.68]
[1759135354395,0.68,209.42,209.39,0.68]
[1759135354793,0.68,209.42,209.38,0.68]
[1759135354996,11.06676906,209.44,209.39,0.68]
[1759135355191,5.45493277,209.43,209.39,0.68]
[1759135355510,7.16905224,209.43,209.4,0.68]
[1759135355824,3.07411947,209.43,209.4,0.68]
[1759135355997,3.07411947,209.43,209.38,5.45596909]
[1759135356203,3.07411947,209.43,209.39,0.68]
[1759135356714,3.07411947,209.43,209.4,0.68]
[1759135356905,31.61191639,209.45,209.41,0.68]
[1759135357313,36.38637336,209.45,209.41,0.68]
[1759135357818,3.21779692,209.45,209.42,0.68]
[1759135358119,5.61191639,209.47,209.43,0.68]
[1759135358327,0.68,209.46,209.41,0.68]
[1759135358619,0.68,209.46,209.42,0.68]
[1759135358815,10.38592377,209.47,209.42,4.77506212]
[1759135359124,135.87411947,209.48,209.43,0.68]
[1759135359331,2.39411947,209.46,209.42,0.68]
[1759135359497,2.39411947,209.46,209.41,4.7752732]
[1759135359824,3.07411947,209.46,209.43,0.68]
[1759135360429,2.39411947,209.46,209.43,0.68]
[1759135361713,3.07411947,209.46,209.43,0.68]
[1759135361907,2.39411947,209.46,209.41,5.45531715]
[1759135362224,3.07411947,209.46,209.42,0.68]
[1759135362422,2.39411947,209.45,209.42,0.68]
[1759135362631,3.07411947,209.45,209.4,0.68]
[1759135362930,3.07411947,209.45,209.41,0.68]
[1759135363525,0.68,209.44,209.39,0.68]
[1759135363733,2.39411947,209.45,209.4,0.68]
[1759135363906,2.39411947,209.45,209.37,36.62]
[1759135364106,3.07411947,209.45,209.38,0.68]
[1759135364419,2.39411947,209.44,209.38,0.68]
[1759135364616,7.16890932,209.44,209.38,5.45591539]
[1759135364818,7.84890932,209.44,209.39,0.68]
[1759135365023,0.68,209.43,209.39,0.68]
[1759135365917,5.45503569,209.43,209.39,0.68]
[1759135366625,0.68,209.43,209.39,5.45575688]
[1759135366927,7.16878429,209.44,209.4,0.68]
[1759135367129,0.68,209.43,209.39,4.77575688]
[1759135367315,0.68,209.43,209.39,5.45575688]
[1759135367813,5.45488191,209.43,209.39,0.68]
[1759135369728,3.07411947,209.42,209.38,0.68]
[1759135370111,3.07411947,209.42,209.39,0.68]
[1759135370307,0.68,209.41,209.36,0.68]
[1759135370534,2.39411947,209.4,209.36,0.68]
[1759135370833,0.68,209.4,209.36,4.77632363]
[1759135371032,2.39411947,209.41,209.37,0.67]
[1759135371333,3.11411947,209.41,209.37,0.67]
[1759135371534,0.72,209.4,209.37,0.67]
[1759135371832,0.72,209.42,209.38,0.67]
[1759135372429,2.39411947,209.43,209.39,0.67]
[1759135372626,3.11411947,209.43,209.39,0.67]
[1759135372840,0.72,209.42,209.37,0.67]
[1759135373133,0.72,209.44,209.38,0.67]
[1759135373433,2.39411947,209.44,209.38,0.67]
[1759135374135,3.11411947,209.44,209.38,0.67]
[1759135374942,7.88886331,209.44,209.38,5.44580323]
[1759135375237,7.88886331,209.44,209.39,0.67]
[1759135375535,7.16886331,209.44,209.39,0.67]
[1759135375721,0.72,209.43,209.39,0.67]
[1759135376322,4.77496185,209.43,209.36,4.77631561]
[1759135376529,3.11411947,209.42,209.36,5.44631561]
[1759135377040,41.98971348,209.4,209.35,0.1]
[1759135377244,2.39411947,209.36,209.35,0.1]
[1759135377529,41.98971348,209.36,209.35,0.1]
[1759135377732,44.62574346,209.36,209.35,0.1]
[1759135378134,52.62241446,209.36,209.35,0.1]
[1759135378335,50.22829499,209.36,209.35,0.1]
[1759135378545,28.39411947,209.36,209.35,0.1]
[1759135378930,33.17058106,209.36,209.35,0.1]
[1759135379128,33.89058106,209.36,209.35,0.1]
[1759135381216,33.17058106,209.36,209.35,0.1]
[1759135381737,2.39411947,209.36,209.35,0.1]
[1759135382921,7.17058106,209.36,209.35,0.1]
[1759135383251,2.39411947,209.36,209.35,0.1]
[1759135384924,2.39411947,209.38,209.35,5.54663238]
[1759135385122,7.99138369,209.43,209.36,0.67]
[1759135385323,4.77627092,209.43,209.36,0.67]
[1759135385647,4.77442328,209.45,209.36,14.26559401]
[1759135385836,3.21511277,209.48,209.37,0.67]
[1759135386043,2.39411947,209.49,209.39,28.39411947]
[1759135386244,2.39411947,209.49,209.4,37.29]
[1759135386428,2.39411947,209.49,209.41,0.67]
[1759135386828,7.16768076,209.49,209.42,4.77509311]
[1759135387028,7.16768076,209.49,209.43,0.67]
[1759135387237,7.88768076,209.49,209.43,0.67]
[1759135387850,2.39411947,209.47,209.41,0.67]
[1759135388054,0.72,209.46,209.4,4.77546762]
[1759135388234,0.72,209.46,209.4,5.44546762]
[1759135389128,5.49437397,209.46,209.4,5.44546762]
[1759135390128,3.11411947,209.45,209.39,4.77575614]
[1759135390335,3.11411947,209.45,209.39,5.44575614]
[1759135390729,3.11411947,209.45,209.4,0.67]
[1759135390930,0.72,209.45,209.41,0.67]
[1759135391232,5.4944508,209.45,209.41,0.67]
[1759135391838,5.4944508,209.45,209.39,4.77574796]
[1759135392150,5.4944508,209.45,209.39,5.44574796]
[1759135392950,2.39411947,209.44,209.39,5.44574796]
[1759135393149,0.67,209.43,209.39,5.44574796]
[1759135393361,2.39411947,209.44,209.39,4.77574796]
[1759135393535,2.39411947,209.44,209.4,0.69]
[1759135395565,2.39411947,209.44,209.4,5.46554852]
[1759135396266,2.39411947,209.44,209.4,0.69]
[1759135396267,3.06411947,209.44,209.4,0.69]
[1759135396876,2.39411947,209.44,209.4,0.69]
[1759135398649,0.67,209.43,209.38,5.4659585]
[1759135398838,0.67,209.42,209.37,41.39619752]
[1759135399041,7.16880925,209.44,209.37,41.39619752]
[1759135399042,7.16880925,209.44,209.38,0.69]
[1759135399853,7.16880925,209.44,209.39,4.77577725]
[1759135400049,7.83880925,209.44,209.39,5.46577725]
[1759135400764,3.06411947,209.44,209.39,5.46577725]
[1759135400967,3.06411947,209.44,209.4,0.69]
[1759135402566,2.39411947,209.46,209.4,5.46549984]
[1759135402871,33.16784629,209.48,209.41,0.69]
[1759135403873,33.16784629,209.48,209.42,4.77509311]
[1759135404071,33.16784629,209.48,209.43,0.69]
[1759135404384,33.84784629,209.48,209.44,0.69]
[1759135404867,29.07411947,209.48,209.44,0.69]
[1759135405566,0.68,209.47,209.42,5.46509311]
[1759135405752,0.68,209.47,209.42,4.77509311]
[1759135405953,0.68,209.47,209.43,0.69]
[1759135406359,6.98513227,209.47,209.43,0.69]
[1759135406561,0.68,209.46,209.42,4.77509311]
[1759135406762,6.30513227,209.47,209.43,0.69]
[1759135406964,6.98513227,209.47,209.43,0.69]
[1759135409169,5.45395601,209.47,209.43,0.69]
[1759135409679,5.45395601,209.47,209.43,5.4648449]
[1759135410074,1.53117626,209.46,209.43,5.4648449]
[1759135411381,1.53117626,209.46,209.43,0.69]
[1759135411968,1.53117626,209.46,209.44,0.69]
[1759135412371,1.53117626,209.46,209.42,5.46508689]
[1759135412671,6.30541763,209.46,209.4,42.06551284]
[1759135412876,1.53117626,209.47,209.41,0.69]
[1759135413672,2.21117626,209.47,209.41,0.69]
[1759135413871,1.53117626,209.47,209.41,0.69]
[1759135414698,1.53117626,209.47,209.42,4.77509311]
[1759135414890,1.53117626,209.47,209.43,0.69]
[1759135416184,1.53117626,209.47,209.44,5.46458994]
[1759135416367,1.53117626,209.47,209.45,0.69]
[1759135417267,1.53117626,209.47,209.44,4.77458994]
[1759135417491,1.53117626,209.47,209.44,5.46458994]
[1759135417664,1.53117626,209.49,209.45,0.69]
[1759135417865,1.53117626,209.49,209.46,0.69]
[1759135418075,1.53117626,209.49,209.47,0.69]
[1759135418389,2.21117626,209.51,209.47,5.46395008]
[1759135419072,1.53117626,209.51,209.47,4.77395008]
[1759135419426,1.53117626,209.51,209.48,0.69]
[1759135420865,5.45259362,209.53,209.47,4.77395008]
[1759135421068,1.53117626,209.52,209.49,0.69]
[1759135421387,2.21117626,209.52,209.47,5.46395008]
[1759135421591,0.68,209.51,209.45,5.46440916]
[1759135421788,2.21117626,209.5,209.45,5.46440916]
[1759135421990,2.21117626,209.5,209.45,4.77440916]
[1759135422187,2.21117626,209.5,209.46,0.69]
[1759135422675,6.98447092,209.5,209.46,0.69]
[1759135424012,0.68,209.49,209.45,4.77440916]
[1759135424713,6.30447092,209.5,209.44,5.46458877]
[1759135424714,0.68,209.48,209.44,5.46458877]
[1759135425215,1.53117626,209.48,209.45,0.69]
[1759135427212,32.30447092,209.5,209.46,0.69]
[1759135427413,32.98447092,209.5,209.45,4.77437365]
[1759135427604,32.98447092,209.5,209.45,5.46437365]
[1759135427915,0.68,209.49,209.44,4.77460957]
[1759135428115,2.21117626,209.48,209.44,4.77460957]
[1759135428315,1.53117626,209.48,209.44,5.46460957]
[1759135429202,2.21117626,209.48,209.44,5.46460957]
[1759135429503,6.98491819,209.48,209.44,5.46460957]
[1759135429924,1.53117626,209.49,209.45,0.69]
[1759135430102,2.21117626,209.49,209.45,0.69]
[1759135431404,6.98468938,209.49,209.45,0.69]
[1759135433409,6.98468938,209.49,209.45,5.46435938]
[1759135433615,1.53117626,209.49,209.46,0.67]
[1759135433917,1.53117626,209.49,209.47,0.67]
[1759135434326,1.53117626,209.49,209.45,5.44435938]
[1759135434531,1.53117626,209.49,209.45,4.77435938]
[1759135434731,1.53117626,209.49,209.46,0.67]
[1759135435250,5.45309602,209.51,209.47,0.67]
[1759135435251,4.74042198,209.51,209.47,0.67]
[1759135435407,4.77284599,209.52,209.47,0.67]
[1759135435408,1.53117626,209.52,209.47,0.67]
[1759135436227,6.98405776,209.52,209.47,0.67]
[1759135436415,6.30405776,209.52,209.48,0.67]
[1759135436617,6.30405776,209.52,209.49,0.67]
[1759135438456,1.53117626,209.52,209.49,0.67]
[1759135442656,1.53117626,209.52,209.49,4.7734906]
[1759135442863,1.53117626,209.52,209.49,5.4434906]
[1759135443179,1.53117626,209.52,209.49,4.7734906]
[1759135443373,1.53117626,209.52,209.5,0.67]
[1759135444348,1.53117626,209.52,209.51,0.67]
[1759135444658,1.53117626,209.52,209.49,5.4434906]
[1759135444852,3.21737518,209.55,209.5,0.67]
[1759135445057,1.53117626,209.55,209.5,0.67]
[1759135445352,1.53117626,209.53,209.5,0.67]
[1759135446346,2.21117626,209.53,209.48,5.44372541]
[1759135446651,6.98382992,209.53,209.49,0.67]
[1759135447446,2.21117626,209.53,209.49,0.67]
[1759135447865,1.53117626,209.53,209.5,0.67]
[1759135448375,1.53117626,209.53,209.5,5.4432678]
[1759135448963,1.53117626,209.53,209.5,0.67]
[1759135449259,6.30376293,209.53,209.5,0.67]
[1759135449669,1.53117626,209.53,209.5,0.67]
[1759135450381,6.30378178,209.53,209.46,36.6]
[1759135450565,6.30378178,209.53,209.47,0.67]
[1759135450566,0.68,209.52,209.47,0.67]
[1759135450877,6.30378178,209.53,209.47,0.67]
[1759135451071,6.98378178,209.53,209.47,0.67]
[1759135452279,6.98378178,209.53,209.47,5.44387102]
[1759135453381,6.98378178,209.53,209.45,16.71043207]
[1759135453558,6.98378178,209.53,209.48,0.7]
[1759135453760,0.69,209.52,209.48,0.7]
[1759135454475,0.69,209.52,209.48,5.4737141]
[1759135454982,5.46286692,209.52,209.48,0.7]
[1759135455880,0.69,209.52,209.48,5.47368447]
[1759135456265,0.69,209.53,209.49,0.7]
[1759135456473,2.22117626,209.53,209.49,0.7]
[1759135456672,6.30376428,209.53,209.48,4.77368447]
[1759135456867,6.30376428,209.53,209.5,0.7]
[1759135457186,6.99353738,209.54,209.5,0.7]
[1759135457663,2.22117626,209.54,209.5,0.7]
[1759135458163,1.53117626,209.54,209.51,0.7]
[1759135458365,2.22117626,209.54,209.51,0.7]
[1759135458563,6.9935556,209.54,209.49,5.47341248]
[1759135458764,6.9935556,209.54,209.5,0.7]
[1759135459385,2.22117626,209.54,209.5,0.7]
[1759135459689,0.69,209.53,209.48,0.7]
[1759135459982,0.69,209.52,209.48,0.7]
[1759135460191,32.99356444,209.54,209.49,0.7]
[1759135460361,32.99356444,209.54,209.47,4.77395331]
[1759135460362,1.53117626,209.52,209.47,4.77395331]
[1759135460565,0.69,209.51,209.47,5.47395331]
[1759135460765,6.30409236,209.52,209.47,5.47395331]
[1759135461173,0.72,209.51,209.47,5.47395331]
[1759135461371,6.30409236,209.52,209.48,0.66]
[1759135461574,6.30409236,209.52,209.47,4.77395331]
[1759135461889,0.72,209.51,209.47,0.66]
[1759135462291,6.30409236,209.52,209.46,4.77413468]
[1759135462596,6.30409236,209.52,209.47,0.66]
[1759135462769,7.02409236,209.52,209.48,0.66]
[1759135462970,7.02409236,209.52,209.47,5.43388583]
[1759135463164,7.02409236,209.52,209.47,4.77388583]
[1759135463362,7.02409236,209.52,209.48,0.66]
[1759135463566,7.02409236,209.52,209.47,4.77388583]
[1759135463795,0.72,209.51,209.48,0.66]
[1759135463969,0.72,209.51,209.47,0.66]
[1759135464287,5.49304616,209.51,209.46,4.77418122]
[1759135464462,4.77304616,209.51,209.47,0.66]
[1759135464665,4.77304616,209.51,209.48,0.66]
[1759135465072,7.02401341,209.52,209.48,0.66]
[1759135465788,35.52104761,209.54,209.49,0.66]
[1759135465988,32.30367243,209.54,209.49,5.43338579]
[1759135466187,33.02367243,209.54,209.5,0.66]
[1759135466588,28.25117626,209.54,209.5,0.66]
[1759135467576,1.53117626,209.54,209.51,0.66]
[1759135468081,6.30333646,209.55,209.51,0.66]
[1759135468397,7.88284224,209.55,209.51,0.66]
[1759135468567,36.37983788,209.57,209.51,0.66]
[1759135468772,28.39068204,209.57,209.51,5.43300086]
[1759135468974,26.0,209.56,209.52,0.66]
[1759135469187,2.39068204,209.57,209.52,0.66]
[1759135470167,2.39068204,209.57,209.52,4.77262601]
[1759135470367,2.39068204,209.57,209.53,0.66]
[1759135470585,2.39068204,209.57,209.54,0.66]
[1759135471677,7.16238319,209.57,209.54,0.66]
[1759135471890,7.88238319,209.57,209.52,0.66]
[1759135472091,7.88238319,209.57,209.53,0.66]
[1759135472092,5.49170115,209.57,209.53,0.66]
[1759135472298,28.39068204,209.58,209.53,0.66]
[1759135472471,28.39068204,209.58,209.51,4.77289707]
[1759135472472,2.39068204,209.58,209.51,4.77289707]
[1759135472674,0.72,209.57,209.52,0.66]
[1759135472998,2.39068204,209.56,209.53,0.66]
[1759135474182,7.16230699,209.58,209.54,0.66]
[1759135474384,0.72,209.57,209.52,0.66]
[1759135474687,0.72,209.57,209.53,0.66]
[1759135475077,7.16230699,209.58,209.47,4.77395331]
[1759135475280,7.16230699,209.58,209.51,0.66]
[1759135475484,7.88230699,209.58,209.51,0.66]
[1759135476177,7.88230699,209.58,209.52,4.77281405]
[1759135476379,7.16230699,209.58,209.52,5.43281405]
[1759135476591,7.88230699,209.58,209.52,5.43281405]
[1759135476791,7.16230699,209.58,209.52,5.43281405]
[1759135476973,0.72,209.57,209.52,5.43281405]
[1759135477173,0.72,209.57,209.5,4.77326968]
[1759135477387,0.72,209.57,209.51,0.66]
[1759135477585,5.49167679,209.57,209.51,0.66]